Cogmind - Beta 13 X1 @@@ ROGUE MODE // 2023.06.25 @ 00:12:52 Player: JackNine Result: Destroyed by 3O-1DN(R) with Subdweller Shrapnel Launcher Performance ------------- Evolutions (0) 0 Regions Visited (2) 400 Robots Destroyed (36) 180 Value Destroyed (823) 823 Prototype IDs (1) 20 Alien Tech Used (0) 0 Bonus (-104) -104 TOTAL SCORE: 1319 Bonus ------- High Alert Combat Kills 16 Friendly Fire -120 Cogmind --------- Core Integrity 0/250 Matter 124/300 Energy 280/280 System Corruption 0% Temperature Cool (0) Movement Treading (260) Ox1 Location -10/Subcaves Parts ------- > --- POWER (1) -------- Heavy Ion Engine > --- PROPULSION (2) --- Spiked Treads Compact Wheel > --- UTILITY (2) ------ Scrap Shield > --- WEAPON (2) ------- Subdweller Laser Subdweller Shrapnel Launcher > --- INVENTORY (5) ---- Heavy Ion Engine Improved Treads Improved Treads Subdweller Laser Subdweller Machine Gun Peak State ------------ > --- POWER ------------ Heavy Ion Engine > --- PROPULSION ------- Improved Treads Compact Wheel > --- UTILITY ---------- Scrap Shield > --- WEAPON ----------- Subdweller Laser Subdweller Laser > --- INVENTORY -------- Heavy Ion Engine Improved Treads Improved Treads Medium Laser Battle Cannon [Rating: 15] Favorites ----------- Power Heavy Ion Engine Engine Heavy Ion Engine Propulsion Compact Wheel Treads Spiked Treads Wheel Compact Wheel Utility Scrap Shield Device Heat Sink Storage Large Storage Unit Protection Scrap Shield Weapon Subdweller Laser Energy Gun Subdweller Laser Ballistic Gun Subdweller Machine Gun Launcher Subdweller Shrapnel Launcher Special Weapon Mining Laser Build | -11 -10 -10 ------- Run | Jun Mat Sub Slots Evolved . | . . . Power . | . . . Propulsion . | . . . Utility . | . . . Weapon . | . . . Parts Attached 31 | 5 12 14 Power 3 | 1 2 . Engine 3 | 1 2 . Core . | . . . Reactor . | . . . Propulsion 6 | 2 3 1 Treads 4 | 1 2 1 Leg . | . . . Wheel 2 | 1 1 . Hover . | . . . Flight . | . . . Utility 7 | 1 4 2 Device 2 | . 2 . Storage 3 | 1 2 . Processor . | . . . Hackware . | . . . Protection 2 | . . 2 Artifact . | . . . Weapon 15 | 1 3 11 Energy Gun 11 | 1 2 8 Energy Cannon . | . . . Ballistic Gun 1 | . . 1 Ballistic Cannon . | . . . Launcher 2 | . . 2 Special Weapon 1 | . 1 . Impact Weapon . | . . . Slashing Weapon . | . . . Piercing Weapon . | . . . Special Melee Weapon . | . . . Unidentified Prototypes 1 | . 1 . Parts Lost 3 | . 1 2 Power . | . . . Propulsion 1 | . 1 . Utility 1 | . . 1 Weapon 1 | . . 1 Highest Loss Streak 2 | . 1 2 To Critical Strikes . | . . . Average Slot Usage (%) 87 | . 95 84 Engine 14 | . 14 14 Treads 14 | . 14 14 Wheel 13 | . 13 14 Device 2 | . 11 . Storage 3 | . 14 . Protection 10 | . . 13 Energy Gun 25 | . 25 25 Ballistic Gun 1 | . . 1 Naked Turns . | . . . Heaviest Build 93 | 12 93 92 Greatest Support 16 | 16 16 16 Greatest Overweight (x) 5 | . 5 5 Average Overweight (x) 1 | . 1 1 Largest Inventory Capacity 25 | 8 25 25 Average Capacity 7 | 7 16 5 Most Carried 17 | 5 16 17 Average Carried 6 | 4 10 5 Final Capacity 25 | 8 25 5 Final Carried 16 | 5 16 5 Class Distribution -------------------- 71% | Subdweller-Mutant 28% | Mutant Dominant Class ---------------- Mutant | -10/Materials Subdweller-Mutant | -10/Subcaves Resources | -11 -10 -10 ----------- Run | Jun Mat Sub Matter Collected 577 | 225 128 224 Remotely . | . . . Salvage Created 1041 | 91 476 474 Parts 72 | 13 29 30 Haulers Intercepted 1 | . 1 . Recyclers Shooed 3 | 1 2 . Parts Field Recycled . | . . . Retrieved Matter . | . . . Parts Self-Destructed 21 | . . 21 Prevented . | . . . Kills | -11 -10 -10 ------- Run | Jun Mat Sub Combat Hostiles Destroyed 27 | . 12 15 Guns 23 | . 12 11 AOE 4 | . . 4 Classes Destroyed 8 | 1 4 3 Tunneler 4 | 4 . . Hauler 1 | . 1 . Recycler 1 | . 1 . Turret 2 | . . 2 Swarmer 11 | . 6 5 Grunt 6 | . 6 . Subdweller 10 | . . 10 Guerrilla 1 | . . 1 Best Kill Streak 3 | 3 3 3 Combat Bots Only 3 | . 3 2 Max Kills in Single Turn 2 | 1 1 2 Gunslinging 1 | . . 1 Exploded 1 | . . 1 Melee . | . . . Uniques/NPCs Destroyed . | . . . Combat | -11 -10 -10 -------- Run | Jun Mat Sub Damage Taken 1785 | . 376 1409 Core 284 | . 95 189 Absorbed by Shields . | . . . Regen/Repaired (Parts) 117 | . 117 . Core Remaining (%) 100 | 100 . . Volleys Fired 166 | 14 47 105 Largest 2 | 1 2 2 Hottest 120 | 50 100 120 Shots Fired 250 | 14 77 159 Gun 238 | 14 76 148 Cannon . | . . . Launcher 11 | . . 11 Special 1 | . 1 . Kinetic 26 | . . 26 Thermal 224 | 14 77 133 Explosive . | . . . Electromagnetic . | . . . Robot Hit Streak 39 | 2 16 39 Robot Miss Streak 5 | 3 4 5 Penetration Max . | . . . Secondary Targets 2 | . . 2 Max Gunslinging Chain 1 | . . 1 Shots Hit Robots 138 | 7 50 81 Core Hits 55 | 4 23 28 Critical Kills 2 | . . 2 Critical Parts Destroyed . | . . . Critical Strikes 5 | . 2 3 Burn 3 | . 2 1 Destroy 2 | . . 2 Melee Attacks . | . . . Impact . | . . . Slashing . | . . . Piercing . | . . . Sneak Attacks . | . . . Combat Hostiles . | . . . Follow-up Attacks . | . . . Damage Inflicted 2897 | 86 613 2198 Guns 2186 | 86 612 1488 Cannons . | . . . Explosions 710 | . . 710 Melee . | . . . Ramming 1 | . 1 . Kinetic 954 | . . 954 Thermal 1942 | 86 612 1244 Explosive . | . . . Electromagnetic . | . . . Impact . | . . . Slashing . | . . . Piercing . | . . . Highest Corruption . | . . . Average Corruption . | . . . Corruption Purged . | . . . Corruption Blocked . | . . . Overload Shots . | . . . Overflow Damage . | . . . Projectiles . | . . . Explosions . | . . . Melee . | . . . Knockbacks . | . . . Impact . | . . . Kinetic . | . . . Secondary . | . . . Self-Inflicted Damage . | . . . Shots . | . . . Rammed 1 | . 1 . Targets Rammed 1 | . 1 . Kicked . | . . . Crushed . | . . . Highest Temperature 290 | 70 162 290 Average Temperature 36 | 32 45 29 Received Heat Transfer 557 | . 114 443 Siege Activations . | . . . Robots Corrupted . | . . . Combat Hostiles . | . . . Parts Fried . | . . . Impact Corruptions . | . . . Robots Melted . | . . . Combat Hostiles . | . . . Parts Melted 6 | 1 4 1 Heat Transferred 3701 | 259 1782 1660 Parts Sabotaged . | . . . Parts Stolen . | . . . Parts Stripped . | . . . Power Chain Reactions . | . . . Missiles Intercepted . | . . . Alert | -11 -10 -10 ------- Run | Jun Mat Sub Peak Influence 449 | 20 449 . Initial 13 | . 13 . Average 233 | 7 263 . Maximum Alert Level 2 | . 2 . Low Security (%) 30 | 100 21 . Level 1 64 | . 73 . Level 2 5 | . 5 . Level 3 . | . . . Level 4 . | . . . Level 5 . | . . . High Security . | . . . Max Security . | . . . Squads Dispatched 2 | . 2 . Investigation 2 | . 2 . Extermination . | . . . Reinforcement . | . . . Assault . | . . . Garrison . | . . . Intercept . | . . . Searches Triggered . | . . . Construction Impeded . | . . . Haulers Reinforced . | . . . Active Scanning Responses . | . . . Cargo Convoy Interrupts . | . . . Stealth | -11 -10 -10 --------- Run | Jun Mat Sub Distress Signals 2 | . 2 . Communications Jammed . | . . . Distress Signals . | . . . Times Spotted 55 | . 26 29 Peak Tracking Total 4 | . 4 3 Tactical Retreats 6 | . 4 2 Traps | -11 -10 -10 ------- Run | Jun Mat Sub Traps Triggered 7 | . 1 6 Indirectly . | . . . Trap Hack Attempts . | . . . Triggered . | . . . Disarmed . | . . . Reprogrammed . | . . . Reused . | . . . Traps Extracted . | . . . Installed . | . . . Triggered 1 | . . 1 Machines | -11 -10 -10 ---------- Run | Jun Mat Sub Machines Disabled 2 | . . 2 Max in Single Turn 2 | . . 2 Machines Repaired . | . . . Machines Sabotaged . | . . . Overloaded Fab Kills . | . . . Hacking | -11 -10 -10 --------- Run | Jun Mat Sub Machines Accessed 7 | . 6 1 Terminals 5 | . 5 . Fabricators . | . . . Repair Stations 1 | . 1 . Recycling Units . | . . . Scanalyzers . | . . . Garrison Access . | . . . Total Hacks 18 | . 17 1 Successful 11 | . 10 1 Failed 6 | . 6 . Catastrophic 2 | . 2 . Database Lockouts 1 | . 1 . Manual 13 | . 9 4 Terminals 15 | . 15 . Fabricators . | . . . Repair Stations 2 | . 2 . Recycling Units . | . . . Scanalyzers . | . . . Garrison Access . | . . . Terminal Hacks 5 | . 4 1 Record 1 | . . 1 Robot Analysis 1 | . 1 . Locate Traps 2 | . 2 . Registered Components 1 | . 1 . Fabricator Hacks . | . . . Repair Station Hacks 2 | . 2 . Scan Component 1 | . 1 . Repair 1 | . 1 . Recycling Unit Hacks . | . . . Scanalyzer . | . . . Garrison Access Hacks . | . . . Unauthorized Hacks 4 | . 4 . Terminals 4 | . 4 . Track 1 | . 1 . Botnet 2 | . 2 . Operators 1 | . 1 . Fabricators . | . . . Repair Stations . | . . . Recycling Units . | . . . Scanalyzers . | . . . Garrison Access . | . . . Data Cores Recovered . | . . . Used . | . . . Hacking Detections 5 | . 5 . Full Trace Events 1 | . 1 . Feedback Events . | . . . Feedback Blocked . | . . . Robot Schematics Acquired . | . . . Robots Built . | . . . Authchips . | . . . Time . | . . . Total Robot Build Rating . | . . . Part Schematics Acquired . | . . . Parts Built . | . . . Authchips . | . . . Time . | . . . Total Part Build Rating . | . . . Parts Repaired 1 | . 1 . Time 26 | . 26 . Parts Recycled . | . . . Recycled Matter . | . . . Retrieved Matter . | . . . Retrieved Components . | . . . Parts Scanalyzed . | . . . Part Schematics Acquired . | . . . Parts Damaged . | . . . Bothacking | -11 -10 -10 ------------ Run | Jun Mat Sub Used RIF Installer . | . . . Robots Hacked . | . . . Non-combat . | . . . Combat . | . . . Robot Hacks Applied . | . . . Relay Couplers Released . | . . . Fabnet Peak Effective % . | . . . Robots Rewired . | . . . Allies Hacked . | . . . Hacks Repelled . | . . . Allies | -11 -10 -10 -------- Run | Jun Mat Sub Total Allies . | . . . Largest Group . | . . . Highest-Rated Group . | . . . Highest-Rated Ally . | . . . Total Orders . | . . . Ally Attacks . | . . . Total Damage . | . . . Kills . | . . . Allies Corrupted . | . . . Allies Melted . | . . . Intel | -11 -10 -10 ------- Run | Jun Mat Sub Robot Analysis Total 1 | . 1 . Derelict Logs Recovered 2 | . . 2 Drone Launches . | . . . Drone Recoveries . | . . . Exploration | -11 -10 -10 ------------- Run | Jun Mat Sub Turns Passed 3931 | 114 871 2946 Spaces Moved 2590 | 66 520 2004 Core 5 | 5 . . Treads . | . . . Legs . | . . . Wheels 2585 | 61 520 2004 Hover . | . . . Flight . | . . . Fastest Speed 50 | 50 100 100 Average Speed 128 | 96 129 129 Slowest Speed 175 | 100 175 175 Overloaded Moves . | . . . Propulsion Burnouts . | . . . Robots Hopped . | . . . Cave-ins Triggered . | . . . Exploration Rate (%) 62 | 4 95 89 Regions Visited 2 Branch Regions 1 Pre-discovered Areas 1 | . . 1 Known Exits Taken . | . . . Unknown Exits Taken 2 | 1 1 . Scrap Searched 12 | . . 12 Spaces Dug 5 | . 1 4 Terrain Destroyed 131 | . 1 130 Melee . | . . . Projectile 5 | . 1 4 AOE 126 | . . 126 Terrain Rammed . | . . . Walls Destroyed . | . . . Machines Disabled . | . . . Actions | -11 -10 -10 --------- Run | Jun Mat Sub Total 2935 | 99 643 2193 Wait 79 | 10 35 34 Move 2588 | 65 519 2004 Hop . | . . . Pick Up 28 | 5 18 5 Fast Attach 14 | 5 3 6 Attach 5 | . 4 1 Detach 5 | . 2 3 Swap 12 | . 5 7 Drop 22 | . 9 13 Fire 166 | 14 47 105 Melee . | . . . Ram . | . . . Kick . | . . . Crush 1 | . 1 . Escape Stasis . | . . . Rewire . | . . . Trap . | . . . Miscellaneous 15 | . . 15 Route ------- -11/Junkyard -10/Materials (discovered 6 exits: [*Mat x3] / [*Min x2] / *Sub) -10/Subcaves (discovered 3 exits: [*Mat] / [*Mat] / [*Rec]) History --------- Turn | Location | Event 33 | -11/Junkyard | Discovered new exit (range 15) 115 | -11/Junkyard | Entered Materials 200 | -10/Materials | Central database locked down 286 | -10/Materials | Discovered new exit (range 10) 316 | -10/Materials | Build established: Mutant 494 | -10/Materials | Discovered new exit (range 3) 517 | -10/Materials | Repaired Lgt. Treads 547 | -10/Materials | Discovered new exit (range 8) 665 | -10/Materials | Discovered new exit (range 4) 895 | -10/Materials | Discovered new exit (range 9) 967 | -10/Materials | Discovered new exit (range 11) 986 | -10/Materials | Entered Subcaves 1104 | -10/Subcaves | Shifting Twisted Machinery released Mak. Sword 1104 | -10/Subcaves | Shifting Twisted Machinery released Sub. Laser 1269 | -10/Subcaves | Discovered new exit (range 14) 1288 | -10/Subcaves | A swath of the cavern ceiling suddenly collapsed 1358 | -10/Subcaves | Learned location of 2 exits from Materials 1403 | -10/Subcaves | Learned location of Zion (-7) 1403 | -10/Subcaves | Met a Zionite searching for "candidates" 1421 | -10/Subcaves | Build established: Subdweller-Mutant 1474 | -10/Subcaves | Shifting Twisted Machinery released Flamer 1512 | -10/Subcaves | Shifting Twisted Machinery released Sub. Monowheel 1620 | -10/Subcaves | Shifting Twisted Machinery released Hvy. Riot Gun 1647 | -10/Subcaves | Disturbed a concealed Subdweller 1827 | -10/Subcaves | Core integrity fell below 50% 2043 | -10/Subcaves | Discovered new exit (range 8) 2801 | -10/Subcaves | Learned Materials trap positions 3086 | -10/Subcaves | Discovered new exit (range 11) 3330 | -10/Subcaves | Core integrity fell below 20% 3923 | -10/Subcaves | Ambushed by Subdweller buried in earth 3932 | -10/Subcaves | Destroyed by 3O-1DN(R) with Subdweller Shrapnel Launcher Last Messages --------------- 03670_ SQ-7TL(R) destroyed. 03672_ B6-0SC(R) destroyed. 03678_ Acquired 2 matter. 03681_ Scrap Shield Fragment affixed to Scrap Shield (+35). 03687_ Acquired 34 matter. 03735_ Acquired 9 matter. 03784_ A thin wall crumbles away, revealing a door. 03799_ Sealed Doors breached. 03812_ Connecting with Clippyterm... 03812_ Current location identified: Subcaves >>Record! "Clippyterm" Welcome to Clippyterm v0.53, my misguided attempt to resurrect an ancient AI. I give up. There must be something fundamentally wrong with the algorithm, because no matter how much data I collect to feed it, half the time it still manages to suggest unhelpful sample queries and responses. --DD-NU8 03820_ Connecting with Clippyterm... 03919_ 2R-I36(R) destroyed. 03924_ KP-9QW(R): "ARGHSUB!" 03925_ 4H-AQJ(R) destroyed. 03928_ 3O-1DN(R): "ARGHSUB!" Map ----- +----------------------------------------------------+ | ####???###??## ###### #?###?????????????????? | | ?????????????# ## ## #?????????????????? | | ?????????????# #?????????????????? | | ?????????????# ##?????????????????? | | ?????????????# #??????????????????? | | ????????###### ##??????????????????? | | ????????#" "" ## #???????????????????? | | ????????#"" "" ## ##???????????????????? | | ????????#"X ## #????????????????????? | | ????????#"" "" #?????##?????????????? | | ????????#" """ ##???? ##????????????? | | ????????#######" #????? #????????????? | | ??????????????## ##??? ##???????????? | | ???????????????## #### ##??????????? | | ???????????########### ##?????????? | | ??????????## ##?#### #?????????? | | ?????????## ### ## #????????? | | ?####???## ### ### ???????????? | | ?# ###?# ##### #??????????????? | | ?# ### ### #### #####??????????????? | | ?# #?## ##??????????????????? | | ?## # #??# ##???????????????????? | | ####"# #??## #????????????????????? | | #""""#####" #??## #????????????????????? | | "##"###??##" #???####### ##????????????????????? | | ###"""#???####?????????# @ #?????????????????????? | | #""####????????????????# #?????????????????????? | | "### ???????????????# #????????????????????? | | ##"# ???????????????# ##????????????????????? | | ""#"" ??????????????? ?????????????????????? | | ""##"# ????????????? #????????????????????? | | "#"""# #??????????? #????????????????????? | | ##"#"""# ?????????? ????????????????????? | | ######"# ?????????; ????????????????????? | | ?????# "" ????????? ???????????????????? | | ????## "#""????????? ?????#####?????????? | | ????# " ##???????? ! ????? ###???????? | | ???## #?????????# & ???? ##??????? | | ??## #?????????# R ??## #??????? | | ?## #??????????? #?## ????#### | | ## ####?????????? ### ""????#" # | | # ##"#???????????# ### #?????# | | # ###"#????#####?## ### #???????## | | # "" ##??## #"### ## #????######## | | # "" ####"" " ## #######"" ""## | | """ " ## ## #""" "" | | #### # ## " "" " " | | #??# ####### "" ""/ [ "" | | #### #?## ##?????## ### " ###""" | | ???#####??####???????###### ###?### ##?## " | +----------------------------------------------------+ Best States ------------- Heat Dissipation 35 Energy Generation 14 Energy Capacity 280 Matter Stores 300 Matter Capacity 300 Sight Range 16 Terrain Scan Density 10 Armor Coverage 800 Evasion (%) 40 Recoil Reduction 1 Item Schematics ----------------- None Robot Schematics ------------------ None Fabricated ------------ Nothing Alien Tech Used ----------------- None Achievements -------------- None Challenges ------------ None Game ------ Seed GlidesysUltimateExtractor Manual? 0 Play Time 00:36:14 Cumulative 340.0 hours Start 2023.06.24 @ 23:31:09 End 2023.06.25 @ 00:12:52 Sessions 1 Manual Loads 0 Difficulty Rogue Special Mode None Game No. 172 Rogue 172 Adventurer 0 Explorer 0 Win Type - Total 11 Types 6/0/3/0/0/0/2/0/0 Lore% 80 Gallery% 87 Achievement% 78 Wizard Run 0 Options --------- ASCII 0 Keyboard 1 Movement Numpad Keybinds 0 Fullscreen 2 Font 12/Smallcaps Map View 83x54 Tactical HUD 1 Map Filters NONE Filters NONE Steam 1 RUN: 5c055d05-c7b1-4a6a-9ef8-6d211f67b900